[Event "Titled Tuesday Blitz June 13 Late 2023"]
[White "Sariego Figueredo, Wilfredo"]
[Black "Zherebtsova, Alexandra"]
[WhiteFideId "3500080"]
[BlackFideId "24129518"]
[WhiteElo "2309"]
[BlackElo "2055"]
[Result "0-1"]
[Round "6"]
[TimeControl "180+2"]
[Date "2023.06.13"]
[WhiteClock "0:00:21"]
[BlackClock "0:00:18"]
[Board "153"]

1. d4 {[%clk 0:03:00]}  Nf6 {[%clk 0:02:59]} 2. Bf4 {[%clk 0:02:59]}  c5 {[%clk 0:02:59]} 3. d5 {[%clk 0:02:59]}  b5 {[%clk 0:02:58]} 4. e3 {[%clk 0:02:57]}  Bb7 {[%clk 0:02:57]} 5. Bxb5 {[%clk 0:02:55]}  Nxd5 {[%clk 0:02:56]} 6. Bg3 {[%clk 0:02:54]}  Qa5+ {[%clk 0:02:55]} 7. Nd2 {[%clk 0:02:48]}  Nxe3 {[%clk 0:02:32]} 8. fxe3 {[%clk 0:02:47]}  Qxb5 {[%clk 0:02:30]} 9. Ngf3 {[%clk 0:02:44]}  e6 {[%clk 0:02:24]} 10. c4 {[%clk 0:02:43]}  Qb6 {[%clk 0:02:20]} 11. O-O {[%clk 0:02:37]}  Be7 {[%clk 0:02:20]} 12. Ne5 {[%clk 0:02:37]}  O-O {[%clk 0:02:15]} 13. Qh5 {[%clk 0:02:29]}  f6 {[%clk 0:02:07]} 14. Nd3 {[%clk 0:02:14]}  Nc6 {[%clk 0:01:59]} 15. Rf4 {[%clk 0:02:00]}  g6 {[%clk 0:01:48]} 16. Qh6 {[%clk 0:01:56]}  Rf7 {[%clk 0:01:47]} 17. Rff1 {[%clk 0:01:34]}  Nb4 {[%clk 0:01:38]} 18. Nxb4 {[%clk 0:01:24]}  cxb4 {[%clk 0:01:37]} 19. Bf2 {[%clk 0:01:18]}  Bf8 {[%clk 0:01:33]} 20. Qf4 {[%clk 0:01:16]}  Qc6 {[%clk 0:01:32]} 21. Nf3 {[%clk 0:01:14]}  Bg7 {[%clk 0:01:29]} 22. Rac1 {[%clk 0:01:08]}  g5 {[%clk 0:01:14]} 23. Qg3 {[%clk 0:01:06]}  Rc8 {[%clk 0:01:02]} 24. Nd4 {[%clk 0:00:59]}  Qe4 {[%clk 0:01:02]} 25. Nb5 {[%clk 0:00:53]}  Bf8 {[%clk 0:00:57]} 26. Nxa7 {[%clk 0:00:49]}  Ra8 {[%clk 0:00:56]} 27. Nb5 {[%clk 0:00:47]}  Rxa2 {[%clk 0:00:53]} 28. b3 {[%clk 0:00:43]}  h5 {[%clk 0:00:45]} 29. h4 {[%clk 0:00:34]}  g4 {[%clk 0:00:35]} 30. Ra1 {[%clk 0:00:32]}  Rxa1 {[%clk 0:00:27]} 31. Rxa1 {[%clk 0:00:33]}  d5 {[%clk 0:00:23]} 32. Rc1 {[%clk 0:00:19]}  dxc4 {[%clk 0:00:23]} 33. bxc4 {[%clk 0:00:20]}  b3 {[%clk 0:00:22]} 34. Re1 {[%clk 0:00:16]}  b2 {[%clk 0:00:21]} 35. Nc3 {[%clk 0:00:15]}  Qc2 {[%clk 0:00:19]} 36. Nb1 {[%clk 0:00:16]}  e5 {[%clk 0:00:16]} 37. Rf1 {[%clk 0:00:12]}  Qe4 {[%clk 0:00:16]} 38. Be1 {[%clk 0:00:12]}  Bc5 {[%clk 0:00:15]} 39. Bd2 {[%clk 0:00:11]}  Kg7 {[%clk 0:00:13]} 40. Qf2 {[%clk 0:00:10]}  f5 {[%clk 0:00:11]} 41. Qe2 {[%clk 0:00:09]}  f4 {[%clk 0:00:11]} 42. Nc3 {[%clk 0:00:08]}  Bxe3+ {[%clk 0:00:08]} 43. Bxe3 {[%clk 0:00:07]}  Qxe3+ {[%clk 0:00:08]} 44. Qxe3 {[%clk 0:00:07]}  fxe3 {[%clk 0:00:09]} 45. Rxf7+ {[%clk 0:00:08]}  Kxf7 {[%clk 0:00:09]} 46. Kf1 {[%clk 0:00:08]}  Ba6 {[%clk 0:00:08]} 47. Ke2 {[%clk 0:00:08]}  Bxc4+ {[%clk 0:00:08]} 48. Kxe3 {[%clk 0:00:08]}  Ba2 {[%clk 0:00:08]} 49. g3 {[%clk 0:00:06]}  b1=Q {[%clk 0:00:09]} 50. Nxb1 {[%clk 0:00:07]}  Bxb1 {[%clk 0:00:09]} 51. Kd2 {[%clk 0:00:08]}  Kf6 {[%clk 0:00:10]} 52. Ke3 {[%clk 0:00:08]}  Bg6 {[%clk 0:00:10]} 53. Kf2 {[%clk 0:00:09]}  Kf5 {[%clk 0:00:10]} 54. Ke3 {[%clk 0:00:10]}  Ke6 {[%clk 0:00:10]} 55. Kd2 {[%clk 0:00:10]}  Kd5 {[%clk 0:00:11]} 56. Ke3 {[%clk 0:00:10]}  Bf5 {[%clk 0:00:12]} 57. Kd2 {[%clk 0:00:10]}  Ke4 {[%clk 0:00:12]} 58. Ke2 {[%clk 0:00:10]}  Be6 {[%clk 0:00:13]} 59. Kf2 {[%clk 0:00:11]}  Bc4 {[%clk 0:00:13]} 60. Kg2 {[%clk 0:00:11]}  Ke3 {[%clk 0:00:14]} 61. Kh2 {[%clk 0:00:11]}  Kf3 {[%clk 0:00:14]} 62. Kg1 {[%clk 0:00:12]}  Kxg3 {[%clk 0:00:14]} 63. Kh1 {[%clk 0:00:13]}  Kxh4 {[%clk 0:00:14]} 64. Kg1 {[%clk 0:00:14]}  Kg5 {[%clk 0:00:15]} 65. Kh1 {[%clk 0:00:14]}  Kf4 {[%clk 0:00:15]} 66. Kg1 {[%clk 0:00:15]}  e4 {[%clk 0:00:16]} 67. Kf2 {[%clk 0:00:16]}  Bd5 {[%clk 0:00:16]} 68. Ke1 {[%clk 0:00:17]}  Kf3 {[%clk 0:00:16]} 69. Kf1 {[%clk 0:00:17]}  Bc4+ {[%clk 0:00:17]} 70. Kg1 {[%clk 0:00:18]}  e3 {[%clk 0:00:17]} 71. Kh2 {[%clk 0:00:19]}  e2 {[%clk 0:00:18]} 72. Kh1 {[%clk 0:00:19]}  e1=Q+ {[%clk 0:00:18]} 73. Kh2 {[%clk 0:00:20]}  Qg3+ {[%clk 0:00:18]} 74. Kh1 {[%clk 0:00:21]}  Qg2# {[%clk 0:00:18]} 0-1


[Site "https://www.chess.com"]

[Event "Titled Tuesday Blitz June 13 Late 2023"]
[White "Djordjevic, Dejan N"]
[Black "Garrido, Denis"]
[WhiteFideId "913316"]
[BlackFideId "601217"]
[WhiteElo "2261"]
[BlackElo "2347"]
[Result "1-0"]
[Round "6"]
[TimeControl "180+2"]
[Date "2023.06.13"]
[WhiteClock "0:00:07"]
[BlackClock "0:00:00"]
[Board "154"]

1. e4 {[%clk 0:02:56]}  e5 {[%clk 0:02:59]} 2. Nf3 {[%clk 0:02:56]}  Nc6 {[%clk 0:03:00]} 3. Bc4 {[%clk 0:02:55]}  Nf6 {[%clk 0:02:59]} 4. d3 {[%clk 0:02:54]}  Bc5 {[%clk 0:02:59]} 5. O-O {[%clk 0:02:54]}  d6 {[%clk 0:02:57]} 6. Re1 {[%clk 0:02:54]}  O-O {[%clk 0:02:54]} 7. c3 {[%clk 0:02:53]}  a6 {[%clk 0:02:54]} 8. Bb3 {[%clk 0:02:53]}  Ba7 {[%clk 0:02:53]} 9. Nbd2 {[%clk 0:02:53]}  Ng4 {[%clk 0:02:52]} 10. Re2 {[%clk 0:02:52]}  Kh8 {[%clk 0:02:53]} 11. h3 {[%clk 0:02:52]}  Nh6 {[%clk 0:02:52]} 12. Nf1 {[%clk 0:02:45]}  f5 {[%clk 0:02:50]} 13. Bxh6 {[%clk 0:02:44]}  gxh6 {[%clk 0:02:51]} 14. N1h2 {[%clk 0:02:31]}  fxe4 {[%clk 0:02:50]} 15. dxe4 {[%clk 0:02:30]}  Qf6 {[%clk 0:02:41]} 16. Qd2 {[%clk 0:02:26]}  Bd7 {[%clk 0:02:26]} 17. Kh1 {[%clk 0:02:24]}  Rae8 {[%clk 0:02:06]} 18. Rd1 {[%clk 0:02:22]}  Re7 {[%clk 0:02:03]} 19. Rg1 {[%clk 0:01:39]}  Rg7 {[%clk 0:01:58]} 20. Bd5 {[%clk 0:01:20]}  Nd8 {[%clk 0:01:48]} 21. b4 {[%clk 0:01:19]}  Ne6 {[%clk 0:01:36]} 22. Bxe6 {[%clk 0:01:12]}  Bxe6 {[%clk 0:01:34]} 23. a4 {[%clk 0:01:08]}  Bc4 {[%clk 0:01:17]} 24. Ree1 {[%clk 0:01:06]}  Qf4 {[%clk 0:01:07]} 25. Qc2 {[%clk 0:00:55]}  h5 {[%clk 0:00:54]} 26. Nf1 {[%clk 0:00:30]}  Be6 {[%clk 0:00:40]} 27. Ng3 {[%clk 0:00:17]}  Bxh3 {[%clk 0:00:32]} 28. Nxh5 {[%clk 0:00:14]}  Bxg2+ {[%clk 0:00:30]} 29. Rxg2 {[%clk 0:00:14]}  Qh6 {[%clk 0:00:19]} 30. Rh2 {[%clk 0:00:09]}  Rxf3 {[%clk 0:00:19]} 31. Rg1 {[%clk 0:00:08]}  Rxg1+ {[%clk 0:00:18]} 32. Kxg1 {[%clk 0:00:08]}  Qg5+ {[%clk 0:00:14]} 33. Kf1 {[%clk 0:00:08]}  Be3 {[%clk 0:00:00]} 34. Ke2 {[%clk 0:00:07]} 1-0


[Site "https://www.chess.com"]

[Event "Titled Tuesday Blitz June 13 Late 2023"]
[White "Omariev, Maksim"]
[Black "deloewre"]
[WhiteFideId "4193423"]
[WhiteElo "2339"]
[BlackElo "2130"]
[Result "1-0"]
[Round "6"]
[TimeControl "180+2"]
[Date "2023.06.13"]
[WhiteClock "0:00:25"]
[BlackClock "0:00:00"]
[Board "156"]

1. g4 {[%clk 0:02:54]}  d5 {[%clk 0:02:55]} 2. Bg2 {[%clk 0:02:50]}  c6 {[%clk 0:02:52]} 3. h3 {[%clk 0:02:49]}  e5 {[%clk 0:02:50]} 4. d4 {[%clk 0:02:49]}  e4 {[%clk 0:02:41]} 5. c4 {[%clk 0:02:46]}  Bd6 {[%clk 0:02:39]} 6. Nc3 {[%clk 0:02:43]}  Ne7 {[%clk 0:02:37]} 7. Bg5 {[%clk 0:02:33]}  f6 {[%clk 0:02:28]} 8. Be3 {[%clk 0:02:26]}  Na6 {[%clk 0:02:25]} 9. c5 {[%clk 0:02:19]}  Bb8 {[%clk 0:02:19]} 10. a3 {[%clk 0:02:19]}  Nc7 {[%clk 0:02:17]} 11. b4 {[%clk 0:02:19]}  a6 {[%clk 0:02:15]} 12. Na4 {[%clk 0:02:15]}  Ba7 {[%clk 0:02:06]} 13. Qd2 {[%clk 0:02:09]}  Ne6 {[%clk 0:02:00]} 14. Bf4 {[%clk 0:02:04]}  O-O {[%clk 0:01:43]} 15. e3 {[%clk 0:02:02]}  Bb8 {[%clk 0:01:29]} 16. Nb6 {[%clk 0:01:51]}  Bxf4 {[%clk 0:01:25]} 17. exf4 {[%clk 0:01:45]}  Rb8 {[%clk 0:01:23]} 18. Ne2 {[%clk 0:01:43]}  Qc7 {[%clk 0:01:18]} 19. f5 {[%clk 0:01:38]}  Ng5 {[%clk 0:01:15]} 20. Nf4 {[%clk 0:01:20]}  g6 {[%clk 0:01:08]} 21. fxg6 {[%clk 0:01:05]}  Nxg6 {[%clk 0:01:04]} 22. Nxg6 {[%clk 0:00:57]}  hxg6 {[%clk 0:01:03]} 23. O-O-O {[%clk 0:00:58]}  Be6 {[%clk 0:00:53]} 24. h4 {[%clk 0:00:58]}  Nf7 {[%clk 0:00:51]} 25. f3 {[%clk 0:00:53]}  f5 {[%clk 0:00:49]} 26. h5 {[%clk 0:00:52]}  g5 {[%clk 0:00:36]} 27. gxf5 {[%clk 0:00:51]}  Bxf5 {[%clk 0:00:35]} 28. fxe4 {[%clk 0:00:52]}  dxe4 {[%clk 0:00:30]} 29. d5 {[%clk 0:00:51]}  Qf4 {[%clk 0:00:27]} 30. Rdf1 {[%clk 0:00:39]}  Qxd2+ {[%clk 0:00:22]} 31. Kxd2 {[%clk 0:00:40]}  Ne5 {[%clk 0:00:21]} 32. d6 {[%clk 0:00:34]}  g4 {[%clk 0:00:16]} 33. Ke3 {[%clk 0:00:34]}  Nf3 {[%clk 0:00:14]} 34. Bxf3 {[%clk 0:00:29]}  exf3 {[%clk 0:00:12]} 35. Kf2 {[%clk 0:00:29]}  Rbe8 {[%clk 0:00:10]} 36. Re1 {[%clk 0:00:28]}  Kg7 {[%clk 0:00:08]} 37. Nc4 {[%clk 0:00:27]}  Bd3 {[%clk 0:00:06]} 38. Ne3 {[%clk 0:00:26]}  Bf5 {[%clk 0:00:00]} 39. Nxf5+ {[%clk 0:00:25]} 1-0


[Site "https://www.chess.com"]

[Event "Titled Tuesday Blitz June 13 Late 2023"]
[White "Gerbelli Neto, Eduardo"]
[Black "Maluco_do_Natal_00"]
[WhiteFideId "2103281"]
[WhiteElo "2178"]
[BlackElo "2084"]
[Result "0-1"]
[Round "6"]
[TimeControl "180+2"]
[Date "2023.06.13"]
[WhiteClock "0:01:10"]
[BlackClock "0:00:31"]
[Board "157"]

1. e4 {[%clk 0:03:00]}  c5 {[%clk 0:02:59]} 2. Nc3 {[%clk 0:03:00]}  Nc6 {[%clk 0:02:59]} 3. f4 {[%clk 0:03:01]}  e6 {[%clk 0:02:55]} 4. Nf3 {[%clk 0:03:02]}  a6 {[%clk 0:02:51]} 5. d4 {[%clk 0:03:01]}  cxd4 {[%clk 0:02:51]} 6. Nxd4 {[%clk 0:03:02]}  Bc5 {[%clk 0:02:48]} 7. Nxc6 {[%clk 0:02:52]}  bxc6 {[%clk 0:02:46]} 8. Qg4 {[%clk 0:02:48]}  Qf6 {[%clk 0:02:34]} 9. e5 {[%clk 0:02:47]}  Qg6 {[%clk 0:02:27]} 10. Qxg6 {[%clk 0:02:46]}  hxg6 {[%clk 0:02:26]} 11. Ne4 {[%clk 0:02:47]}  Bb6 {[%clk 0:02:11]} 12. c4 {[%clk 0:02:35]}  Nh6 {[%clk 0:01:52]} 13. Nd6+ {[%clk 0:02:28]}  Ke7 {[%clk 0:01:47]} 14. Bd3 {[%clk 0:02:28]}  Ng4 {[%clk 0:01:34]} 15. h3 {[%clk 0:02:19]}  Nf2 {[%clk 0:01:31]} 16. Rf1 {[%clk 0:02:01]}  Nxd3+ {[%clk 0:01:28]} 17. Kd2 {[%clk 0:02:01]}  Nxc1 {[%clk 0:01:15]} 18. Raxc1 {[%clk 0:02:02]}  Bc5 {[%clk 0:01:12]} 19. Ne4 {[%clk 0:02:01]}  Bd4 {[%clk 0:01:12]} 20. b4 {[%clk 0:01:59]}  Rb8 {[%clk 0:01:03]} 21. Kd3 {[%clk 0:01:58]}  Bb6 {[%clk 0:00:54]} 22. a4 {[%clk 0:01:43]}  Bc7 {[%clk 0:00:51]} 23. Rb1 {[%clk 0:01:38]}  d5 {[%clk 0:00:41]} 24. exd6+ {[%clk 0:01:36]}  Bxd6 {[%clk 0:00:41]} 25. c5 {[%clk 0:01:36]}  Bc7 {[%clk 0:00:38]} 26. Kc4 {[%clk 0:01:27]}  Rd8 {[%clk 0:00:33]} 27. g4 {[%clk 0:01:15]}  e5 {[%clk 0:00:32]} 28. f5 {[%clk 0:01:10]}  Rd4+ {[%clk 0:00:31]} 0-1


[Site "https://www.chess.com"]

[Event "Titled Tuesday Blitz June 13 Late 2023"]
[White "Sairam, Pranav"]
[Black "Eisa Mohmood, Alkhoori"]
[WhiteFideId "30951330"]
[BlackFideId "9316116"]
[WhiteElo "1918"]
[BlackElo "1364"]
[Result "1-0"]
[Round "6"]
[TimeControl "180+2"]
[Date "2023.06.13"]
[WhiteClock "0:00:02"]
[BlackClock "0:00:02"]
[Board "159"]

1. e4 {[%clk 0:03:00]}  c5 {[%clk 0:02:58]} 2. Nf3 {[%clk 0:02:59]}  d6 {[%clk 0:02:59]} 3. d4 {[%clk 0:02:58]}  cxd4 {[%clk 0:03:00]} 4. Nxd4 {[%clk 0:02:59]}  Nf6 {[%clk 0:03:01]} 5. Nc3 {[%clk 0:03:00]}  g6 {[%clk 0:03:02]} 6. Be3 {[%clk 0:02:59]}  Bg7 {[%clk 0:03:03]} 7. f3 {[%clk 0:02:58]}  O-O {[%clk 0:03:03]} 8. Bc4 {[%clk 0:02:58]}  Nc6 {[%clk 0:03:04]} 9. Qd2 {[%clk 0:02:58]}  Bd7 {[%clk 0:03:05]} 10. O-O {[%clk 0:02:59]}  Rc8 {[%clk 0:03:04]} 11. Bb3 {[%clk 0:02:59]}  Ne5 {[%clk 0:03:05]} 12. a4 {[%clk 0:02:59]}  Nc4 {[%clk 0:03:04]} 13. Bxc4 {[%clk 0:02:59]}  Rxc4 {[%clk 0:03:05]} 14. b3 {[%clk 0:02:59]}  Rc8 {[%clk 0:03:03]} 15. Na2 {[%clk 0:02:59]}  b6 {[%clk 0:02:57]} 16. c4 {[%clk 0:02:58]}  Bc6 {[%clk 0:02:48]} 17. Nb4 {[%clk 0:02:53]}  Bb7 {[%clk 0:02:48]} 18. Nd3 {[%clk 0:02:52]}  Nd7 {[%clk 0:02:47]} 19. a5 {[%clk 0:02:46]}  Qc7 {[%clk 0:02:33]} 20. Rfb1 {[%clk 0:02:40]}  Nc5 {[%clk 0:02:23]} 21. Nb5 {[%clk 0:02:07]}  Qb8 {[%clk 0:02:19]} 22. Ra3 {[%clk 0:02:06]}  a6 {[%clk 0:02:15]} 23. Nd4 {[%clk 0:01:59]}  Qc7 {[%clk 0:01:41]} 24. axb6 {[%clk 0:01:28]}  Qxb6 {[%clk 0:01:42]} 25. Nf2 {[%clk 0:01:05]}  Qc7 {[%clk 0:01:36]} 26. b4 {[%clk 0:00:59]}  Ne6 {[%clk 0:01:25]} 27. Rc1 {[%clk 0:00:47]}  Rfd8 {[%clk 0:01:19]} 28. Ra5 {[%clk 0:00:36]}  Qb8 {[%clk 0:01:07]} 29. Nxe6 {[%clk 0:00:29]}  fxe6 {[%clk 0:01:07]} 30. Ng4 {[%clk 0:00:22]}  h5 {[%clk 0:01:03]} 31. Nh6+ {[%clk 0:00:20]}  Kh7 {[%clk 0:00:57]} 32. Nf7 {[%clk 0:00:20]}  d5 {[%clk 0:00:40]} 33. Nxd8 {[%clk 0:00:18]}  Rxd8 {[%clk 0:00:38]} 34. exd5 {[%clk 0:00:10]}  exd5 {[%clk 0:00:37]} 35. cxd5 {[%clk 0:00:11]}  Be5 {[%clk 0:00:31]} 36. f4 {[%clk 0:00:10]}  Bd6 {[%clk 0:00:21]} 37. Rf1 {[%clk 0:00:07]}  Bc8 {[%clk 0:00:15]} 38. Bc5 {[%clk 0:00:07]}  Bc7 {[%clk 0:00:10]} 39. Ra3 {[%clk 0:00:06]}  Rd7 {[%clk 0:00:09]} 40. Re3 {[%clk 0:00:04]}  Bb7 {[%clk 0:00:06]} 41. Rxe7+ {[%clk 0:00:03]}  Rxe7 {[%clk 0:00:06]} 42. Bxe7 {[%clk 0:00:03]}  Qe8 {[%clk 0:00:05]} 43. d6 {[%clk 0:00:03]}  Bb6+ {[%clk 0:00:05]} 44. Kh1 {[%clk 0:00:03]}  Qd7 {[%clk 0:00:05]} 45. Re1 {[%clk 0:00:03]}  h4 {[%clk 0:00:03]} 46. Bxh4 {[%clk 0:00:03]}  Qh3 {[%clk 0:00:03]} 47. Re7+ {[%clk 0:00:03]}  Kh6 {[%clk 0:00:03]} 48. f5+ {[%clk 0:00:03]}  Kh5 {[%clk 0:00:02]} 49. Qg5# {[%clk 0:00:02]} 1-0


[Site "https://www.chess.com"]

[Event "Titled Tuesday Blitz June 13 Late 2023"]
[White "rionelG"]
[Black "Romanchuk, Viktor"]
[BlackFideId "14109271"]
[WhiteElo "2209"]
[BlackElo "2242"]
[Result "0-1"]
[Round "6"]
[TimeControl "180+2"]
[Date "2023.06.13"]
[WhiteClock "0:00:00"]
[BlackClock "0:00:35"]
[Board "162"]

1. e4 {[%clk 0:02:59]}  c6 {[%clk 0:02:59]} 2. d4 {[%clk 0:02:58]}  d5 {[%clk 0:03:00]} 3. e5 {[%clk 0:02:58]}  c5 {[%clk 0:03:00]} 4. dxc5 {[%clk 0:02:58]}  e6 {[%clk 0:02:59]} 5. a3 {[%clk 0:02:57]}  Nc6 {[%clk 0:02:59]} 6. b4 {[%clk 0:02:51]}  a5 {[%clk 0:02:58]} 7. b5 {[%clk 0:02:19]}  Nxe5 {[%clk 0:02:57]} 8. Bb2 {[%clk 0:02:15]}  Nd7 {[%clk 0:02:47]} 9. c6 {[%clk 0:02:14]}  bxc6 {[%clk 0:02:48]} 10. bxc6 {[%clk 0:02:14]}  Nb8 {[%clk 0:02:48]} 11. Bb5 {[%clk 0:02:01]}  Qc7 {[%clk 0:02:48]} 12. Nf3 {[%clk 0:01:59]}  Nxc6 {[%clk 0:02:44]} 13. Nd4 {[%clk 0:01:53]}  Bd7 {[%clk 0:02:42]} 14. O-O {[%clk 0:01:49]}  Nf6 {[%clk 0:02:38]} 15. Nd2 {[%clk 0:01:42]}  Nxd4 {[%clk 0:02:35]} 16. Bxd7+ {[%clk 0:01:41]}  Qxd7 {[%clk 0:02:36]} 17. Bxd4 {[%clk 0:01:41]}  Be7 {[%clk 0:02:37]} 18. c4 {[%clk 0:01:37]}  O-O {[%clk 0:02:34]} 19. cxd5 {[%clk 0:01:37]}  Qxd5 {[%clk 0:02:35]} 20. Nf3 {[%clk 0:01:32]}  a4 {[%clk 0:02:34]} 21. Qe2 {[%clk 0:01:29]}  Rfd8 {[%clk 0:02:29]} 22. Rfd1 {[%clk 0:01:28]}  Qe4 {[%clk 0:02:24]} 23. Qb5 {[%clk 0:01:26]}  h6 {[%clk 0:02:10]} 24. h3 {[%clk 0:01:25]}  Rd5 {[%clk 0:02:01]} 25. Qb7 {[%clk 0:01:07]}  Rd7 {[%clk 0:01:56]} 26. Qxe4 {[%clk 0:00:45]}  Nxe4 {[%clk 0:01:55]} 27. Ne5 {[%clk 0:00:45]}  Rd5 {[%clk 0:01:49]} 28. Nc6 {[%clk 0:00:16]}  Bf8 {[%clk 0:01:45]} 29. Nb4 {[%clk 0:00:14]}  Nd6 {[%clk 0:01:34]} 30. Nxd5 {[%clk 0:00:13]}  exd5 {[%clk 0:01:34]} 31. Bc5 {[%clk 0:00:13]}  Ra5 {[%clk 0:01:33]} 32. Bb4 {[%clk 0:00:12]}  Rb5 {[%clk 0:01:31]} 33. Rac1 {[%clk 0:00:12]}  Nc4 {[%clk 0:01:31]} 34. Bxf8 {[%clk 0:00:11]}  Kxf8 {[%clk 0:01:32]} 35. Rc3 {[%clk 0:00:11]}  Ke7 {[%clk 0:01:31]} 36. Rcd3 {[%clk 0:00:11]}  Kd6 {[%clk 0:01:30]} 37. Rc1 {[%clk 0:00:10]}  Rb3 {[%clk 0:01:20]} 38. Rcc3 {[%clk 0:00:09]}  Rxc3 {[%clk 0:01:08]} 39. Rxc3 {[%clk 0:00:10]}  Kc5 {[%clk 0:01:08]} 40. Kf1 {[%clk 0:00:10]}  d4 {[%clk 0:01:09]} 41. Rg3 {[%clk 0:00:09]}  g5 {[%clk 0:01:07]} 42. f4 {[%clk 0:00:08]}  gxf4 {[%clk 0:00:51]} 43. Rf3 {[%clk 0:00:08]}  Kd5 {[%clk 0:00:48]} 44. Rxf4 {[%clk 0:00:06]}  Nxa3 {[%clk 0:00:48]} 45. Rxf7 {[%clk 0:00:06]}  Nb5 {[%clk 0:00:48]} 46. Rf6 {[%clk 0:00:03]}  a3 {[%clk 0:00:41]} 47. Rxh6 {[%clk 0:00:03]}  Nd6 {[%clk 0:00:40]} 48. Rh5+ {[%clk 0:00:02]}  Kc4 {[%clk 0:00:39]} 49. Ra5 {[%clk 0:00:02]}  Kb4 {[%clk 0:00:38]} 50. Ra6 {[%clk 0:00:00]}  Nc4 {[%clk 0:00:35]} 0-1


[Site "https://www.chess.com"]

[Event "Titled Tuesday Blitz June 13 Late 2023"]
[White "Benedetti, Julio"]
[Black "Novikova, Margarita"]
[WhiteFideId "172545"]
[BlackFideId "14109689"]
[WhiteElo "2263"]
[BlackElo "2013"]
[Result "1-0"]
[Round "6"]
[TimeControl "180+2"]
[Date "2023.06.13"]
[WhiteClock "0:00:57"]
[BlackClock "0:00:34"]
[Board "163"]

1. e4 {[%clk 0:03:00]}  d5 {[%clk 0:02:59]} 2. Nc3 {[%clk 0:03:00]}  dxe4 {[%clk 0:02:59]} 3. Nxe4 {[%clk 0:03:01]}  Bf5 {[%clk 0:02:59]} 4. Ng3 {[%clk 0:03:01]}  Bg6 {[%clk 0:02:59]} 5. Nf3 {[%clk 0:03:00]}  e6 {[%clk 0:02:59]} 6. h4 {[%clk 0:03:01]}  h6 {[%clk 0:02:58]} 7. h5 {[%clk 0:03:02]}  Bh7 {[%clk 0:02:57]} 8. d4 {[%clk 0:03:03]}  Nf6 {[%clk 0:02:55]} 9. Bd3 {[%clk 0:03:03]}  Bxd3 {[%clk 0:02:54]} 10. Qxd3 {[%clk 0:03:04]}  Nc6 {[%clk 0:02:48]} 11. Bf4 {[%clk 0:03:05]}  Bd6 {[%clk 0:02:48]} 12. Ne2 {[%clk 0:03:03]}  Qd7 {[%clk 0:02:44]} 13. O-O-O {[%clk 0:03:03]}  O-O-O {[%clk 0:02:44]} 14. Kb1 {[%clk 0:03:03]}  Nd5 {[%clk 0:02:42]} 15. Bxd6 {[%clk 0:03:03]}  Qxd6 {[%clk 0:02:43]} 16. a3 {[%clk 0:03:02]}  Nf4 {[%clk 0:02:41]} 17. Nxf4 {[%clk 0:03:02]}  Qxf4 {[%clk 0:02:42]} 18. g3 {[%clk 0:03:02]}  Qg4 {[%clk 0:02:39]} 19. Rh4 {[%clk 0:03:00]}  Qf5 {[%clk 0:02:31]} 20. Qxf5 {[%clk 0:02:59]}  exf5 {[%clk 0:02:32]} 21. Rf4 {[%clk 0:02:57]}  g6 {[%clk 0:02:30]} 22. hxg6 {[%clk 0:02:56]}  fxg6 {[%clk 0:02:30]} 23. Rh4 {[%clk 0:02:54]}  g5 {[%clk 0:02:22]} 24. Rh5 {[%clk 0:02:52]}  g4 {[%clk 0:02:19]} 25. Nh4 {[%clk 0:02:49]}  Nxd4 {[%clk 0:02:17]} 26. c3 {[%clk 0:02:41]}  Nf3 {[%clk 0:02:07]} 27. Rxd8+ {[%clk 0:02:39]}  Kxd8 {[%clk 0:02:07]} 28. Nxf3 {[%clk 0:02:34]}  gxf3 {[%clk 0:02:03]} 29. Rxf5 {[%clk 0:02:35]}  h5 {[%clk 0:02:00]} 30. Rxf3 {[%clk 0:02:34]}  h4 {[%clk 0:02:00]} 31. gxh4 {[%clk 0:02:33]}  Rxh4 {[%clk 0:01:59]} 32. Rf7 {[%clk 0:02:34]}  Kc8 {[%clk 0:01:58]} 33. Ka2 {[%clk 0:02:30]}  b6 {[%clk 0:01:57]} 34. Kb3 {[%clk 0:02:29]}  Kb7 {[%clk 0:01:57]} 35. Kc2 {[%clk 0:02:28]}  Kc6 {[%clk 0:01:56]} 36. Kd3 {[%clk 0:02:28]}  Kd6 {[%clk 0:01:56]} 37. b4 {[%clk 0:02:25]}  a5 {[%clk 0:01:55]} 38. bxa5 {[%clk 0:02:22]}  bxa5 {[%clk 0:01:54]} 39. f4 {[%clk 0:02:15]}  Rh3+ {[%clk 0:01:48]} 40. Kc4 {[%clk 0:02:15]}  Kc6 {[%clk 0:01:45]} 41. Rf6+ {[%clk 0:02:15]}  Kd7 {[%clk 0:01:41]} 42. a4 {[%clk 0:02:16]}  Rf3 {[%clk 0:01:39]} 43. Rf5 {[%clk 0:02:11]}  Kd6 {[%clk 0:01:34]} 44. Kd4 {[%clk 0:02:07]}  c5+ {[%clk 0:01:30]} 45. Kc4 {[%clk 0:02:03]}  Ke6 {[%clk 0:01:23]} 46. Re5+ {[%clk 0:01:46]}  Kd6 {[%clk 0:01:21]} 47. Rd5+ {[%clk 0:01:46]}  Ke6 {[%clk 0:01:21]} 48. f5+ {[%clk 0:01:46]}  Kf6 {[%clk 0:01:09]} 49. Rxc5 {[%clk 0:01:46]}  Rf4+ {[%clk 0:01:09]} 50. Kb5 {[%clk 0:01:46]}  Ke7 {[%clk 0:01:06]} 51. Kxa5 {[%clk 0:01:42]}  Kd6 {[%clk 0:01:07]} 52. Kb5 {[%clk 0:01:38]}  Rf1 {[%clk 0:01:04]} 53. a5 {[%clk 0:01:27]}  Rb1+ {[%clk 0:01:02]} 54. Kc4 {[%clk 0:01:27]}  Ra1 {[%clk 0:01:01]} 55. Rd5+ {[%clk 0:01:27]}  Kc6 {[%clk 0:01:01]} 56. Re5 {[%clk 0:01:26]}  Kd6 {[%clk 0:01:00]} 57. Re6+ {[%clk 0:01:26]}  Kd7 {[%clk 0:01:01]} 58. a6 {[%clk 0:01:26]}  Ra5 {[%clk 0:00:58]} 59. Rf6 {[%clk 0:01:16]}  Ke7 {[%clk 0:00:56]} 60. Kb4 {[%clk 0:01:13]}  Ra1 {[%clk 0:00:53]} 61. Rb6 {[%clk 0:01:09]}  Rb1+ {[%clk 0:00:49]} 62. Kc5 {[%clk 0:01:09]}  Ra1 {[%clk 0:00:47]} 63. Rb7+ {[%clk 0:01:08]}  Kf6 {[%clk 0:00:47]} 64. a7 {[%clk 0:01:06]}  Kxf5 {[%clk 0:00:47]} 65. Kc6 {[%clk 0:00:58]}  Ke6 {[%clk 0:00:41]} 66. Kc7 {[%clk 0:00:59]}  Kd5 {[%clk 0:00:40]} 67. Kb8 {[%clk 0:00:58]}  Kc6 {[%clk 0:00:36]} 68. a8=Q {[%clk 0:00:58]}  Rb1 {[%clk 0:00:34]} 69. Rxb1+ {[%clk 0:00:57]} 1-0


[Site "https://www.chess.com"]